Cogmind - Beta 16 @@@ ROGUE MODE // 2025.11.18 @ 16:52:11 Player: ClassActJerk Result: Destroyed by G-34 Mercenary with Small Laser Performance ------------- Evolutions (1) 500 Regions Visited (3) 600 Robots Destroyed (39) 195 Value Destroyed (1040) 1040 Prototype IDs (1) 20 Alien Tech Used (0) 0 Bonus (0) 0 TOTAL SCORE: 2355 Bonus ------- None Cogmind --------- Core Integrity 0/400 Matter 300/300 Energy 125/125 System Corruption 0% Temperature Cool (12) Movement Treading (160) Location -9/Storage Parts ------- > --- POWER (1) -------- Light Ion Engine > --- PROPULSION (3) --- Light Treads Improved Treads Improved Treads > --- UTILITY (3) ------ Large Storage Unit Signal Interpreter Improved Propulsion Shielding > --- WEAPON (2) ------- Heavy Assault Rifle Heavy Assault Rifle > --- INVENTORY (15) --- Ion Engine Improved Ion Engine Mini Fusion Reactor Hover Unit Hover Unit Hover Unit Improved Hover Unit Improved Flight Unit Experimental Heat Sink High-capacity Battery (250) Visual Processing Unit Light Armor Plating Reactive Plating 01-MTF's Autohacker Mining Laser Peak State ------------ > --- POWER ------------ Light Ion Engine > --- PROPULSION ------- Light Treads Improved Treads Improved Treads > --- UTILITY ---------- Large Storage Unit Signal Interpreter Improved Propulsion Shielding > --- WEAPON ----------- Heavy Assault Rifle Heavy Assault Rifle > --- INVENTORY -------- Ion Engine Improved Ion Engine Mini Fusion Reactor Hover Unit Hover Unit Hover Unit Improved Hover Unit Improved Flight Unit Experimental Heat Sink High-capacity Battery Visual Processing Unit Light Armor Plating Reactive Plating 01-MTF's Autohacker Mining Laser [Rating: 19] Favorites ----------- Power Light Ion Engine Engine Light Ion Engine Propulsion Aluminum Leg Treads Light Treads Leg Aluminum Leg Utility Large Storage Unit Device Improved Terrain Scanner Storage Large Storage Unit Processor Signal Interpreter Protection Improved Propulsion Shielding Weapon Heavy Assault Rifle Energy Gun Medium Laser Ballistic Gun Heavy Assault Rifle Build | -11 -10 -9 -9 ------- Run | Yrd Mat Mat Sto Slots Evolved 2 | . . 2 . Power . | . . . . Propulsion 1 | . . 1 . Utility 1 | . . 1 . Weapon . | . . . . Parts Attached 38 | 9 1 11 17 Power 6 | 2 . 1 3 Engine 6 | 2 . 1 3 Core . | . . . . Reactor . | . . . . Propulsion 17 | 2 . 6 9 Treads 8 | 2 . . 6 Leg 9 | . . 6 3 Wheel . | . . . . Hover . | . . . . Flight . | . . . . Utility 6 | 2 1 2 1 Device 1 | 1 . . . Storage 3 | 1 1 1 . Processor 1 | . . 1 . Hackware . | . . . . Protection 1 | . . . 1 Artifact . | . . . . Weapon 9 | 3 . 2 4 Energy Gun 3 | 2 . . 1 Energy Cannon . | . . . . Ballistic Gun 6 | 1 . 2 3 Ballistic Cannon . | . . . . Launcher . | . . . . Special Weapon . | . . . . Impact Weapon . | . . . . Slashing Weapon . | . . . . Piercing Weapon . | . . . . Special Melee Weapon . | . . . . Unidentified Prototypes 1 | . . 1 . Parts Lost 11 | . . 6 5 Power 2 | . . 1 1 Propulsion 5 | . . 3 2 Utility 1 | . . . 1 Weapon 3 | . . 2 1 Highest Loss Streak 5 | . . 5 3 To Critical Strikes . | . . . . Average Backups 9 | 2 7 9 10 Power . | 1 1 . . Propulsion 2 | . 1 2 3 Utility 3 | . 3 3 4 Weapon 1 | . 1 2 1 Tool/Special . | . . . . Unused Backups 17 | 1 . 1 15 Power 4 | 1 . . 3 Propulsion 5 | . . . 5 Utility 5 | . . . 5 Weapon 2 | . . 1 1 Tool/Special 1 | . . . 1 Average Slot Usage (%) 96 | . 100 92 96 Engine 10 | . 14 10 10 Treads 15 | . 28 . 17 Leg 14 | . . 28 13 Device 2 | . 14 . . Storage 19 | . 14 21 20 Processor 8 | . . 10 11 Energy Gun 6 | . 14 4 4 Ballistic Gun 16 | . 14 15 17 Peak Build Rating 19 | 9 10 14 19 Average Rating 11 | 5 9 11 13 On Entrance 8 | . 9 10 14 Avg Prop Armor Cover (%) . | . . . . Naked Turns . | . . . . Heaviest Build 33 | 14 28 31 33 Greatest Support 66 | 40 40 30 66 Greatest Overweight (x) 8 | 2 . 8 2 Average Overweight (x) . | . . . . Largest Inventory Capacity 15 | 8 15 15 15 Average Capacity 13 | 7 12 15 15 Most Carried 15 | 6 14 14 15 Average Carried 9 | 2 7 9 10 Final Capacity 15 | 8 15 15 15 Final Carried 15 | 3 14 9 15 Class Distribution -------------------- 71% | Mutant 28% | Scavenger-Mutant Dominant Class ---------------- Mutant | -10/Materials Mutant | -9/Materials Scavenger-Mutant | -9/Storage Resources | -11 -10 -9 -9 ----------- Run | Yrd Mat Mat Sto Matter Collected 1083 | 392 74 224 393 Remotely . | . . . . Salvage Created 1459 | 183 210 425 641 Parts 101 | 10 18 31 42 Haulers Intercepted . | . . . . Recyclers Shooed . | . . . . Parts Field Recycled . | . . . . Retrieved Matter . | . . . . Parts Self-Destructed . | . . . . Prevented . | . . . . Parts Restored . | . . . . Kills | -11 -10 -9 -9 ------- Run | Yrd Mat Mat Sto Combat Hostiles Destroyed 26 | . 7 7 12 Guns 25 | . 7 6 12 AOE 1 | . . 1 . Classes Destroyed 10 | 3 3 2 2 Worker 4 | 2 . . 2 Builder 1 | . . 1 . Tunneler 3 | 3 . . . Recycler 2 | 1 . 1 . Operator 1 | . . . 1 Watcher 2 | . 1 1 . Swarmer 3 | . 3 . . Grunt 15 | . 4 6 5 Brawler 1 | . . . 1 Sentry 7 | . . 1 6 Best Kill Streak 5 | 4 3 5 4 Combat Bots Only 4 | . 3 2 4 Max Kills in Single Turn 2 | 1 1 1 2 Gunslinging 1 | . . . 1 Exploded 1 | . . 1 . Melee . | . . . . Uniques/NPCs Destroyed . | . . . . Combat | -11 -10 -9 -9 -------- Run | Yrd Mat Mat Sto Hostile Shots Fired 225 | . 32 96 97 Missed 55 | . 7 24 24 Hits 170 | . 25 72 73 Melee 3 | . . . 3 Projectile 167 | . 25 72 70 Critical Strikes 5 | . 1 . 4 Damage Taken 2164 | . 276 892 996 Core 439 | . 38 234 167 Absorbed by Shields . | . . . . Redirected to Shielding 29 | . . . 29 Core Remaining (%) 92 | 100 84 . . Volleys Fired 105 | 17 14 34 40 Largest 2 | 2 2 2 2 Hottest 70 | 70 70 70 63 Shots Fired 194 | 34 28 53 79 Gun 194 | 34 28 53 79 Cannon . | . . . . Launcher . | . . . . Special . | . . . . Kinetic 134 | 17 14 41 62 Thermal 53 | 17 14 5 17 Explosive . | . . . . Electromagnetic 7 | . . 7 . Robot Hit Streak 22 | 7 6 19 22 Robot Miss Streak 3 | 3 2 2 2 Penetration Max . | . . . . Secondary Targets 3 | . 1 . 2 Max Gunslinging Chain 1 | . 1 . 1 Shots Hit Robots 145 | 20 19 39 67 Core Hits 63 | 7 13 16 27 Critical Kills 1 | . . . 1 Critical Parts Destroyed . | . . . . Critical Strikes 3 | 2 . . 1 Burn 2 | 2 . . . Destroy 1 | . . . 1 Melee Attacks . | . . . . Impact . | . . . . Slashing . | . . . . Piercing . | . . . . Sneak Attacks . | . . . . Combat Hostiles . | . . . . Follow-up Attacks . | . . . . Damage Inflicted 2118 | 245 241 622 1010 Guns 2081 | 245 241 585 1010 Cannons . | . . . . Explosions 34 | . . 34 . Melee . | . . . . Ramming 3 | . . 3 . Kinetic 1525 | 95 129 464 837 Thermal 506 | 150 112 71 173 Explosive . | . . . . Electromagnetic 84 | . . 84 . Impact . | . . . . Slashing . | . . . . Piercing . | . . . . Highest Corruption . | . . . . Average Corruption . | . . . . Corruption Purged . | . . . . Corruption Blocked . | . . . . Overload Shots . | . . . . Overflow Damage 7 | . . 7 . Projectiles . | . . . . Explosions 7 | . . 7 . Melee . | . . . . Knockbacks . | . . . . Impact . | . . . . Kinetic . | . . . . Secondary . | . . . . Self-Inflicted Damage 46 | . . 46 . Shots 1 | . . 1 . Rammed . | . . . . Targets Rammed 1 | . . 1 . Kicked 1 | . . 1 . Crushed . | . . . . Highest Temperature 94 | 27 90 18 94 Average Temperature 19 | 9 39 5 22 Received Heat Transfer 1005 | . 132 408 465 Siege Activations . | . . . . Martial Activations . | . . . . Shielding Activations . | . . . . Robots Disrupted . | . . . . Combat Hostiles . | . . . . Robots Corrupted . | . . . . Combat Hostiles . | . . . . Parts Fried 1 | . . . 1 Impact Corruptions . | . . . . Robots Melted . | . . . . Combat Hostiles . | . . . . Parts Melted 1 | 1 . . . Heat Transferred 1436 | 592 333 111 400 Parts Sabotaged . | . . . . Parts Stolen . | . . . . Parts Stripped . | . . . . Power Chain Reactions 1 | . . 1 . Alert | -11 -10 -9 -9 ------- Run | Yrd Mat Mat Sto Maximum Alert Level . | . . . . Low Security (%) 100 | 100 100 100 100 Level 1 . | . . . . Level 2 . | . . . . Level 3 . | . . . . Level 4 . | . . . . Level 5 . | . . . . High Security . | . . . . Max Security . | . . . . Peak Influence 107 | 15 107 59 85 Initial . | . . . . Average 23 | 1 39 17 23 Influence Increases 782 | 30 177 199 376 Destroy 0b10 Robot/C 520 | . 140 140 240 Destroy 0b10 Robot/NC 65 | 30 5 15 15 Destroy Leader 144 | . 32 22 90 Successful Hack 14 | . . . 14 Disable Machine 30 | . . 15 15 Destroy Structure 9 | . . 7 2 Influence Decreases 761 | 30 177 199 355 Time Decay 661 | 30 177 139 315 Lost Part 100 | . . 60 40 Squads Dispatched 2 | . 1 . 1 Investigation . | . . . . Extermination . | . . . . Reinforcement 2 | . 1 . 1 Assault . | . . . . Garrison . | . . . . Intercept . | . . . . Searches Triggered . | . . . . Construction Impeded . | . . . . Haulers Reinforced . | . . . . Active Scanning Responses . | . . . . Cargo Convoy Interrupts . | . . . . Stealth | -11 -10 -9 -9 --------- Run | Yrd Mat Mat Sto Distress Signals 2 | . . 1 1 Communications Jammed . | . . . . Distress Signals . | . . . . Times Spotted 42 | . 11 13 18 Peak Tracking Total 6 | . 4 6 5 Tactical Retreats . | . . . . Traps | -11 -10 -9 -9 ------- Run | Yrd Mat Mat Sto Traps Triggered . | . . . . Indirectly . | . . . . Trap Hack Attempts . | . . . . Triggered . | . . . . Disarmed 12 | . . 6 6 Reprogrammed . | . . . . Reused . | . . . . Traps Extracted . | . . . . Installed . | . . . . Triggered . | . . . . Machines | -11 -10 -9 -9 ---------- Run | Yrd Mat Mat Sto Machines Disabled 2 | . . 1 1 Max in Single Turn 1 | . . 1 1 Machines Repaired . | . . . . Machines Dismantled . | . . . . Machines Sabotaged . | . . . . Overloaded Fab Kills . | . . . . Hacking | -11 -10 -9 -9 --------- Run | Yrd Mat Mat Sto Machines Accessed 4 | . . 1 3 Terminals 4 | . . 1 3 Fabricators . | . . . . Repair Stations . | . . . . Recycling Units . | . . . . Scanalyzers . | . . . . Garrison Access . | . . . . Total Hacks 5 | . . 1 4 Successful 5 | . . 1 4 Failed . | . . . . Catastrophic . | . . . . Database Lockouts . | . . . . Manual 6 | . . 1 5 Terminals 5 | . . 1 4 Fabricators . | . . . . Repair Stations . | . . . . Recycling Units . | . . . . Scanalyzers . | . . . . Garrison Access . | . . . . Terminal Hacks 2 | . . 1 1 Disarm Traps 2 | . . 1 1 Fabricator Hacks . | . . . . Repair Station Hacks . | . . . . Recycling Unit Hacks . | . . . . Scanalyzer . | . . . . Garrison Access Hacks . | . . . . Unauthorized Hacks 3 | . . . 3 Terminals 3 | . . . 3 Assimilate 1 | . . . 1 Botnet 2 | . . . 2 Fabricators . | . . . . Repair Stations . | . . . . Recycling Units . | . . . . Scanalyzers . | . . . . Garrison Access . | . . . . Data Cores Recovered 1 | . . . 1 Used . | . . . . Hacking Detections 1 | . . . 1 Full Trace Events . | . . . . Feedback Events . | . . . . Feedback Blocked . | . . . . Robot Schematics Acquired . | . . . . Robots Built . | . . . . Authchips . | . . . . Time . | . . . . Total Robot Build Rating . | . . . . Part Schematics Acquired . | . . . . Parts Built . | . . . . Authchips . | . . . . Time . | . . . . Total Part Build Rating . | . . . . Part Studies Acquired . | . . . . Parts Repaired . | . . . . Time . | . . . . Parts Recycled . | . . . . Recycled Matter . | . . . . Retrieved Matter . | . . . . Retrieved Components . | . . . . Parts Scanalyzed . | . . . . Part Schematics Acquired . | . . . . Parts Damaged . | . . . . Bothacking | -11 -10 -9 -9 ------------ Run | Yrd Mat Mat Sto Used RIF Installer . | . . . . Robots Hacked . | . . . . Non-combat . | . . . . Combat . | . . . . Robot Hacks Applied . | . . . . Relay Couplers Released . | . . . . Fabnet Peak Effective % . | . . . . Robots Rewired . | . . . . Allies Hacked . | . . . . Hacks Repelled . | . . . . Allies | -11 -10 -9 -9 -------- Run | Yrd Mat Mat Sto Total Allies . | . . . . Largest Group . | . . . . Highest-Rated Group . | . . . . Highest-Rated Ally . | . . . . Total Orders . | . . . . Ally Attacks . | . . . . Total Damage . | . . . . Kills . | . . . . Allies Corrupted . | . . . . Allies Melted . | . . . . Intel | -11 -10 -9 -9 ------- Run | Yrd Mat Mat Sto Active Infowar (turns) 442 | 26 411 5 . Terrain 442 | 26 411 5 . Robot Analysis Total . | . . . . Derelict Logs Recovered . | . . . . Drone Launches . | . . . . Drone Recoveries . | . . . . Exploration | -11 -10 -9 -9 ------------- Run | Yrd Mat Mat Sto Turns Passed 2278 | 245 411 456 1166 Spaces Moved 949 | 123 206 164 456 Core 26 | 22 . 4 . Treads 589 | 101 206 . 282 Legs 334 | . . 160 174 Wheels . | . . . . Hover . | . . . . Flight . | . . . . Fastest Speed 50 | 50 160 120 120 Average Speed 163 | 141 160 166 170 Slowest Speed 450 | 160 160 450 260 Overloaded Moves . | . . . . Propulsion Burnouts . | . . . . Robots Hopped . | . . . . Potential Cave-ins . | . . . . Cave-ins Triggered . | . . . . Exploration Rate (%) 27 | 7 33 28 43 Regions Visited 3 Branch Regions 1 Pre-discovered Areas . | . . . . Known Exits Taken 1 | . . 1 . Unknown Exits Taken 2 | 1 1 . . Scrap Searched . | . . . . Spaces Dug . | . . . . Terrain Destroyed 7 | . . 7 . Melee . | . . . . Projectile . | . . . . AOE 7 | . . 7 . Terrain Rammed . | . . . . Walls Destroyed . | . . . . Machines Disabled . | . . . . Actions | -11 -10 -9 -9 --------- Run | Yrd Mat Mat Sto Total 1499 | 160 260 302 777 Wait 331 | . 27 78 226 Move 946 | 122 205 163 456 Hop . | . . . . Pick Up 54 | 10 12 8 24 Fast Attach 2 | 2 . . . Attach 36 | 5 . 13 18 Detach . | . . . . Swap 3 | 2 1 . . Drop 21 | 2 1 5 13 Fire 105 | 17 14 34 40 Melee . | . . . . Ram . | . . . . Kick 1 | . . 1 . Crush . | . . . . Escape Stasis . | . . . . Rewire . | . . . . Trap . | . . . . Miscellaneous . | . . . . Route ------- -11/Scrapyard -10/Materials -9/Materials (discovered 3 exits: *Min x2 / *Sto) -9/Storage (discovered 1 exit: [*Mat]) History --------- Turn | Location | Event 2 | -11/Scrapyard | Met Revision 17 3 | -11/Scrapyard | Discovered new exit (range 15) 246 | -11/Scrapyard | Entered Materials 304 | -10/Materials | Build established: Mutant 633 | -10/Materials | Discovered new exit (range 15) 657 | -10/Materials | Entered another Materials area 657 | -9/Materials | Evolved 2 slots: Propulsion x1, Utility x1 902 | -9/Materials | Core integrity fell below 50% 907 | -9/Materials | Lost 5 parts (1p3n1w) 969 | -9/Materials | Discovered new exit (range 4) 974 | -9/Materials | Identified exit to Mines 1086 | -9/Materials | Discovered exit to Mines (range 13) 1086 | -9/Materials | Discovered new exit (range 15) 1111 | -9/Materials | Identified exit to Storage 1113 | -9/Materials | Entered Storage 1609 | -9/Storage | Lost 3 parts (2n1w) 1863 | -9/Storage | Core integrity fell below 20% 1933 | -9/Storage | Build established: Scavenger-Mutant 2007 | -9/Storage | Met 01-MTF 2149 | -9/Storage | Found Prototype Device 2259 | -9/Storage | Discovered new exit (range 16) 2279 | -9/Storage | Destroyed by G-34 Mercenary with Small Laser Last Messages --------------- 02127_ Acquired 6 matter. 02129_ Y-45 Defender misfires. 02130_ Acquired 6 matter. 02138_ Med. Matter Pod destroyed. 02139_ Acquired 1 matter. 02141_ Critical hit (Burn: +37). 02141_ Heat Sink fried. 02141_ Y-45 Defender destroyed. 02142_ Acquired 11 matter. 02146_ R-06 Scavenger collects Prototype Storage. 02149_ Acquired Prototype Device. 02151_ R-06 Scavenger collects Mak. Cloaking Device. 02152_ Acquired Prototype Device. 02156_ Acquired Imp. Propulsion Shielding. 02223_ Y-45 Defender destroyed. 02226_ Acquired 22 matter. 02231_ Acquired Imp. Ion Engine. 02259_ EXIT=FOUND Map ----- +----------------------------------------------------+ | ?# #??????#![ ! # # """ # | | ?# #??????# """ """ # # """ # | | ?# #??????# """ """ # # """ # | | ## #?????## """ """ # # """ # | | #?????# """ """ + / """ # | | #?????## """ """ # # # | | #??????# # # """ # | | +#####??????########### # """ # | | [%!#??????????????????# # """ # | | %=*#??????????????????# # """ # | | " "#??????????????????# # """[=# | | = #??????????????????# # =%!# | | = #??????????????????# ######!# | | = =#??????????????????# g#????### | | = =#??????????????????# g #??????? | | ####??????????????????# #??????? | | ??????????????????????+ #??????? | | ??????????????????????# #??????? | | ??????????????????????# #??????? | | ????????????########### #??????? | | ????????????# #??????? | | ????????????+ #??????? | | ????????????# #??????? | | ????????????#####+##### #??????? | | ??????????????????????# #??????? | | ??????????????????????# @#??????? | | ??????????????????????# +??????? | | ??????????????????????# #??????? | | ??????????????????????# < #??????? | | ??????????????????????# #??????? | | ??????????????????????#####??????? | | ?????????????????????????????????? | | ?????????????????????????????????? | | ?????????????????????????????????? | | ?????????????????????????????????? | | ?????????????????????????????????? | | ?????????????????????????????????? | | ?????????????????????????????????? | | ?????????????????????????????????? | | ?????????????????????????????????? | | ?????????????????????????????????? | | ?????????????????????????????????? | | | | | | | | | | | | | | | | | +----------------------------------------------------+ Best States ------------- Heat Dissipation 28 Energy Generation 12 Energy Capacity 265 Matter Stores 400 Matter Capacity 400 Sight Range 16 Terrain Scan Range 16 Terrain Scan Density 10 Propulsion Shielding 66 Evasion (%) 55 Recoil Reduction 3 Item Schematics ----------------- None Robot Schematics ------------------ None Fabricated ------------ Nothing Repaired ---------- Nothing Studied --------- None Alien Tech Used ----------------- None Achievements -------------- None Challenges ------------ None Game ------ Seed ThermicLinearEngine Manual? 0 Play Time 00:20:26 Cumulative 31.0 hours Start 2025.11.18 @ 16:25:26 End 2025.11.18 @ 16:52:11 Sessions 1 Manual Loads 0 Difficulty Rogue Special Mode None Game No. 93 Rogue 93 Adventurer 0 Explorer 0 Win Type - Total 0 Types 0/0/0/0/0/0/0/0/0/0 Lore% 7 Gallery% 24 Achievement% 18 Wizard Run 0 Options --------- Layout 1 ASCII 0 Keyboard 0 Movement Mouse Keybinds 0 Fullscreen 1 Font 24/Terminus Map View 50x35 Zoom Use 0% Tactical HUD 1 Map Filters NONE Filters NONE Steam 1 RUN: d3f4649e-023e-4074-8467-350fd2a75253